bitfinex/quotes_BTCUSD_20250523
["timestamp","ask_amount","ask_price","bid_price","bid_amount"]
[1747993799614,0.2233952,111230.0,111220.0,1.56380019]
[1747993799820,0.2233952,111230.0,111220.0,1.57279121]
[1747993801191,0.2233952,111230.0,111220.0,1.58698802]
[1747993801791,0.2233952,111230.0,111220.0,1.577997]
[1747993802004,0.2233952,111230.0,111220.0,1.11075095]
[1747993802202,0.2233952,111230.0,111220.0,1.38019095]
[1747993802859,0.2233952,111230.0,111220.0,1.36599414]
[1747993803199,0.2233952,111230.0,111220.0,1.09655414]
[1747993803464,0.3289114,111230.0,111220.0,0.74163414]
[1747993803846,0.31294076,111230.0,111220.0,1.36599414]
[1747993804487,0.31294076,111230.0,111220.0,1.35532]
[1747993804703,0.31294076,111230.0,111220.0,0.73096]
[1747993804909,0.31294076,111230.0,111220.0,1.0004]
[1747993805681,0.31294076,111230.0,111220.0,0.9974]
[1747993806131,0.04358712,111230.0,111220.0,1.63126968]
[1747993806326,0.06156682,111230.0,111220.0,1.63126968]
[1747993806549,0.07055687,111230.0,111220.0,1.63126968]
[1747993806751,0.07055687,111230.0,111220.0,1.55911635]
[1747993807047,0.07055687,111230.0,111220.0,1.56979049]
[1747993808738,0.07055687,111230.0,111220.0,1.5839873]
[1747993809597,0.07954708,111230.0,111220.0,1.5839873]
[1747993809810,0.07055687,111230.0,111220.0,1.5839873]
[1747993810013,0.07954708,111230.0,111220.0,1.5839873]
[1747993811521,0.07954708,111230.0,111220.0,0.9596273]
[1747993811738,0.07954708,111230.0,111220.0,1.5840273]
[1747993811943,0.07954708,111230.0,111220.0,0.8560673]
[1747993812986,0.07954708,111230.0,111220.0,0.84187049]
[1747993814015,0.07954764,111230.0,111220.0,0.84187049]
[1747993814374,0.25935524,111230.0,111220.0,0.84187049]
[1747993814580,0.25935581,111230.0,111220.0,0.84187049]
[1747993815112,0.25935581,111230.0,111220.0,0.56343987]
[1747993815332,0.25935581,111230.0,111220.0,0.84187065]
[1747993815951,0.24412592,111230.0,111220.0,0.84187065]
[1747993816155,0.24412592,111230.0,111220.0,0.01067414]
[1747993816376,0.22614566,111230.0,111220.0,0.63503414]
[1747993817175,0.21715537,111230.0,111220.0,0.63503414]
[1747993818031,0.21715537,111230.0,111220.0,0.35067414]
[1747993818202,0.21715537,111230.0,111220.0,0.97231414]
[1747993818415,0.21715537,111230.0,111220.0,0.70287414]
[1747993818642,0.21715537,111230.0,111220.0,0.97231414]
[1747993819425,0.21715537,111230.0,111220.0,1.15213791]
[1747993819828,0.21715537,111230.0,111220.0,0.97231414]
[1747993820032,0.21715537,111230.0,111220.0,1.15213791]
[1747993820356,0.21715537,111230.0,111220.0,0.97231414]
[1747993821169,0.21715537,111230.0,111220.0,1.15213791]
[1747993821385,0.21715537,111230.0,111220.0,0.97231414]
[1747993822214,0.21715537,111230.0,111220.0,1.15213791]
[1747993822409,0.21715537,111230.0,111220.0,0.53948909]
[1747993822638,0.21715537,111230.0,111220.0,1.16112909]
[1747993826650,0.21715537,111230.0,111220.0,1.17364286]
[1747993826865,0.21715537,111230.0,111220.0,1.18263388]
[1747993827320,0.0463379,111230.0,111220.0,1.18263388]
[1747993827522,0.05532762,111230.0,111220.0,1.20061536]
[1747993827738,0.24412551,111230.0,111220.0,1.20061536]
[1747993828153,0.25311589,111230.0,111220.0,1.20061552]
[1747993828354,0.25311589,111230.0,111220.0,1.20061504]
[1747993828845,0.244126,111230.0,111220.0,1.20061504]
[1747993829047,0.23513587,111230.0,111220.0,1.18263356]
[1747993830305,0.23513587,111230.0,111220.0,1.19162434]
[1747993830516,0.23066936,111240.0,111230.0,0.546778]
[1747993830727,0.24864793,111240.0,111230.0,0.54677816]
[1747993830944,0.23067001,111240.0,111230.0,0.53778811]
[1747993831084,0.22168085,111240.0,111230.0,0.53778811]
[1747993831295,0.21269144,111240.0,111230.0,0.53778827]
[1747993831753,0.21469144,111240.0,111230.0,0.53778827]
[1747993832084,0.21469144,111240.0,111230.0,0.54849794]
[1747993834178,0.21469144,111240.0,111230.0,0.53950765]
[1747993834925,0.21469144,111240.0,111230.0,0.35970005]
[1747993835340,0.21469144,111240.0,111230.0,0.35070967]
[1747993843687,0.21469144,111240.0,111230.0,0.53051727]
[1747993845669,0.21469144,111240.0,111230.0,0.53950765]
[1747993846544,0.01098892,111240.0,111230.0,0.57150765]
[1747993846763,0.02896708,111240.0,111230.0,0.5664778]
[1747993847017,0.0379564,111240.0,111230.0,0.5664778]
[1747993847493,0.0379564,111240.0,111230.0,0.56996494]
[1747993848386,0.02896708,111240.0,111230.0,0.56996494]
[1747993848826,0.01098892,111240.0,111230.0,0.56996494]
[1747993849011,0.019978,111240.0,111230.0,0.58546494]
[1747993849209,0.019978,111240.0,111230.0,0.60126494]
[1747993850058,0.01997792,111240.0,111230.0,0.60126494]
[1747993851889,0.01997792,111240.0,111230.0,0.58546494]
[1747993852131,0.01997792,111240.0,111230.0,0.56996494]
[1747993853846,0.01098892,111240.0,111230.0,0.56996494]
[1747993854398,0.01997792,111240.0,111230.0,0.56996494]
[1747993855017,0.02896708,111240.0,111230.0,0.56996494]
[1747993855265,0.01997792,111240.0,111230.0,0.56996494]
[1747993856379,0.01098892,111240.0,111230.0,0.56996494]
[1747993856818,0.035878,111240.0,111230.0,1.18956494]
[1747993857210,0.06176724,111240.0,111230.0,1.18956494]
[1747993857405,0.052778,111240.0,111230.0,1.18956494]
[1747993858244,0.052778,111240.0,111230.0,0.92012494]
[1747993858415,0.06176724,111240.0,111230.0,1.18956494]
[1747993858856,0.04378892,111240.0,111230.0,1.18956494]
[1747993860164,0.04378892,111240.0,111230.0,0.56996494]
[1747993860458,0.04378892,111240.0,111230.0,1.18952494]
[1747993861244,0.04378892,111240.0,111230.0,0.92012494]
[1747993861454,0.04378892,111240.0,111230.0,1.18952494]
[1747993862953,0.04378884,111240.0,111230.0,1.18952494]
[1747993866994,0.0348,111240.0,111230.0,1.18952494]
[1747993867148,0.04378892,111240.0,111230.0,1.18952494]
[1747993871107,0.05277792,111240.0,111230.0,1.18952494]
[1747993871410,0.04378892,111240.0,111230.0,1.18952494]
[1747993871689,0.002,111240.0,111230.0,1.18952494]
[1747993871899,0.01098884,111240.0,111230.0,1.18952494]
[1747993874340,0.002,111240.0,111230.0,1.18952494]
[1747993874555,0.002,111240.0,111230.0,1.2790705]
[1747993875462,0.002,111240.0,111230.0,1.26487369]
[1747993876061,0.001,111240.0,111230.0,1.26487369]
[1747993876223,0.06156523,111250.0,111240.0,0.54675917]
[1747993877478,0.06256523,111250.0,111240.0,0.54675917]
[1747993877637,0.06256523,111250.0,111240.0,0.54574499]
[1747993879094,0.06356523,111250.0,111240.0,0.56003859]
[1747993879941,0.06356523,111250.0,111240.0,0.90619859]
[1747993881507,0.07255391,111250.0,111240.0,0.90619859]
[1747993883700,0.06356523,111250.0,111240.0,0.90619859]
[1747993887693,0.06356523,111250.0,111240.0,0.76037429]
[1747993888319,0.05457663,111250.0,111240.0,0.78734202]
[1747993888698,0.06356523,111250.0,111240.0,0.78734202]
[1747993889266,0.06356523,111250.0,111240.0,0.78376716]
[1747993889568,0.05457663,111250.0,111240.0,0.78376716]
[1747993890592,0.06356523,111250.0,111240.0,0.78376716]
[1747993890741,0.05457663,111250.0,111240.0,0.78376716]
[1747993890936,0.05457663,111250.0,111240.0,0.43760716]
[1747993891141,0.06356523,111250.0,111240.0,1.05316716]
[1747993891578,0.06356515,111250.0,111240.0,1.05316716]
[1747993894263,0.07255375,111250.0,111240.0,1.05316716]
[1747993898449,0.06356515,111250.0,111240.0,1.05316716]
[1747993898708,0.06356515,111250.0,111240.0,1.05674202]
[1747993899432,0.07255375,111250.0,111240.0,1.05674202]
[1747993901113,0.06356515,111250.0,111240.0,1.05674202]
[1747993902011,0.05457663,111250.0,111240.0,1.05674202]
[1747993902109,0.06356523,111250.0,111240.0,1.05674202]
[1747993902323,0.05457663,111250.0,111240.0,1.05674202]
[1747993902586,0.06356523,111250.0,111240.0,1.05674202]
[1747993902798,0.07255391,111250.0,111240.0,1.05674202]
[1747993903804,0.07255391,111250.0,111240.0,0.44118202]
[1747993904005,0.07255391,111250.0,111240.0,1.05674202]
[1747993905077,0.25232919,111250.0,111240.0,1.05674202]
[1747993905643,0.26131795,111250.0,111240.0,1.05674202]
[1747993907137,0.26131795,111250.0,111240.0,1.04775302]
[1747993907360,0.26131795,111250.0,111240.0,1.05674218]
[1747993907574,0.25232976,111250.0,111240.0,1.05674218]
[1747993910022,0.24334132,111250.0,111240.0,1.05666243]
[1747993912099,0.24334132,111250.0,111240.0,0.44118243]
[1747993912277,0.24334132,111250.0,111240.0,1.05666243]
[1747993912471,0.22536404,111250.0,111240.0,0.41421429]
[1747993912681,0.22536404,111250.0,111240.0,1.04767318]
[1747993913344,0.22536404,111250.0,111240.0,1.05666242]
[1747993915307,0.22536404,111250.0,111240.0,1.04767318]
[1747993915513,0.22536404,111250.0,111240.0,1.05666242]
[1747993915867,0.22536404,111250.0,111240.0,1.06565158]
[1747993917785,0.22536404,111250.0,111240.0,1.07464066]
[1747993917958,0.22536404,111250.0,111240.0,1.05666242]
[1747993918493,0.22536404,111250.0,111240.0,1.06565158]
[1747993920615,0.23435256,111250.0,111240.0,1.06565158]
[1747993920821,0.23435256,111250.0,111240.0,1.07464066]
[1747993921026,0.06356547,111250.0,111240.0,1.07464066]
[1747993921228,0.06356547,111250.0,111240.0,1.07464009]
[1747993921229,0.03995318,111250.0,111240.0,1.07464009]
[1747993921637,0.21972846,111250.0,111240.0,1.07464009]
[1747993921853,0.21972911,111250.0,111240.0,1.06565109]
[1747993922131,0.23512911,111250.0,111240.0,1.06565109]
[1747993923492,0.25082911,111250.0,111240.0,1.07464009]
[1747993924127,0.04408819,111250.0,111240.0,1.07464009]
[1747993924384,0.02197663,111250.0,111240.0,1.07464009]
[1747993925193,0.02197655,111250.0,111240.0,1.07464009]
[1747993925407,0.03096507,111250.0,111240.0,1.07464009]
[1747993925623,0.02197655,111250.0,111240.0,1.07464009]
[1747993926293,0.03096507,111250.0,111240.0,1.07464009]
[1747993927653,0.02197655,111250.0,111240.0,1.07464009]
[1747993927797,0.03096507,111250.0,111240.0,1.07464009]
[1747993928001,0.02197655,111250.0,111240.0,1.07464009]
[1747993928190,0.03096507,111250.0,111240.0,1.07464009]
[1747993928391,0.03096499,111250.0,111240.0,1.07464009]
[1747993935053,0.03995359,111250.0,111240.0,1.07464009]
[1747993935255,0.07085359,111250.0,111240.0,1.07464009]
[1747993936625,0.03096499,111250.0,111240.0,1.07464009]
[1747993936817,0.01298811,111250.0,111240.0,1.16418565]
[1747993936960,0.02197638,111250.0,111240.0,1.16418565]
[1747993937174,0.01298811,111250.0,111240.0,1.16418565]
[1747993937764,0.02197638,111250.0,111240.0,1.16418565]
[1747993939655,0.03817638,111250.0,111240.0,1.16418565]
[1747993940975,0.03817638,111250.0,111240.0,1.19558565]
[1747993940976,0.01298811,111250.0,111240.0,1.19558565]
[1747993942396,0.01298803,111250.0,111240.0,1.19558565]
[1747993942659,0.01298803,111250.0,111240.0,2.55411405]
[1747993943230,0.01298803,111250.0,111240.0,2.26980605]
[1747993943395,0.01298803,111250.0,111240.0,2.23387105]
[1747993944079,0.01298803,111250.0,111240.0,1.98878905]
[1747993945104,0.01298803,111250.0,111240.0,1.97051862]
[1747993945283,0.004,111250.0,111240.0,1.97051862]
[1747993945488,0.01298803,111250.0,111240.0,1.98480402]
[1747993945831,0.01298803,111250.0,111240.0,1.96880402]
[1747993946033,0.004,111250.0,111240.0,1.95340402]
[1747993946227,0.004,111250.0,111240.0,1.98570402]
[1747993948264,0.003,111250.0,111240.0,2.36800402]
[1747993949240,0.002,111250.0,111240.0,2.35371862]
[1747993950344,0.002,111250.0,111240.0,1.73823862]
[1747993950524,0.002,111250.0,111240.0,1.97125862]
[1747993951508,0.002,111250.0,111240.0,1.42346421]
[1747993952078,0.002,111250.0,111240.0,1.42342421]
[1747993952523,0.002,111250.0,111240.0,1.43768847]
[1747993954057,0.002,111250.0,111240.0,0.82244847]
[1747993954263,0.002,111250.0,111240.0,1.82556847]
[1747993954967,0.002,111250.0,111240.0,1.64974706]
[1747993956937,0.002,111250.0,111240.0,1.98974706]
[1747993957494,0.02205086,111250.0,111240.0,1.98974706]
[1747993959327,0.02205086,111250.0,111240.0,1.37450706]
[1747993959538,0.02205086,111250.0,111240.0,1.98974706]
[1747993960145,0.02073021,111250.0,111240.0,1.98974706]
[1747993960347,0.02073021,111250.0,111240.0,2.37204706]
[1747993961079,0.02073021,111250.0,111240.0,0.95965982]
[1747993961300,0.05223021,111250.0,111240.0,1.66263856]
[1747993961502,0.06121824,111250.0,111240.0,1.66263856]
[1747993962993,0.05223021,111250.0,111240.0,1.66263856]
[1747993963207,0.02971832,111250.0,111240.0,2.82364756]
[1747993963374,0.02073021,111250.0,111240.0,2.82364756]
[1747993963577,0.02971824,111250.0,111240.0,2.82364756]
[1747993964459,0.02073021,111250.0,111240.0,2.20840756]
[1747993964645,0.02073021,111250.0,111240.0,2.82364756]
[1747993964845,0.02073021,111250.0,111240.0,2.84004756]
[1747993965057,0.02073021,111250.0,111240.0,2.82364756]
[1747993965249,0.02073021,111250.0,111240.0,2.84004756]
[1747993965450,0.02073021,111250.0,111240.0,2.85554756]
[1747993966153,0.02073021,111250.0,111240.0,2.8412833]
[1747993972159,0.02073021,111250.0,111240.0,3.2235833]
[1747993974960,0.02073021,111250.0,111240.0,3.23812415]
[1747993981682,0.02073021,111250.0,111240.0,3.23782415]
[1747993982088,0.02073021,111250.0,111240.0,3.20622415]
[1747993982736,0.02073021,111250.0,111240.0,3.23812415]
[1747993983961,0.02073021,111250.0,111240.0,2.93686415]
[1747993984179,0.02073021,111250.0,111240.0,3.20622415]
[1747993986029,0.02073021,111250.0,111240.0,3.23732415]
[1747993986235,0.0695,111270.0,111260.0,0.54672201]
[1747993986615,0.03805085,111270.0,111260.0,4.15596642]
[1747993986785,0.03805085,111270.0,111260.0,3.74185142]
[1747993987385,0.05335085,111270.0,111260.0,3.74185142]
[1747993987526,0.03805085,111270.0,111260.0,3.73041842]
[1747993988410,0.03805085,111270.0,111260.0,3.73241842]
[1747993988967,0.03805085,111270.0,111260.0,3.73341842]
[1747993992291,0.03805085,111270.0,111260.0,3.73333842]
[1747993993880,0.03805085,111270.0,111260.0,3.74873842]
[1747993994008,0.03805085,111270.0,111260.0,3.73333842]
[1747993995381,0.03805085,111270.0,111260.0,3.46401842]
[1747993995508,0.03805085,111270.0,111260.0,3.73333842]
[1747993999009,0.03805085,111270.0,111260.0,3.11833842]
[1747993999285,0.03805085,111270.0,111260.0,3.73333842]
[1747994000351,0.03805085,111270.0,111260.0,3.46401842]
[1747994000573,0.05395085,111270.0,111260.0,3.73333842]
[1747994001734,0.06925085,111270.0,111260.0,3.73333842]
[1747994003034,0.06925085,111270.0,111260.0,3.73309842]
[1747994003852,0.06925085,111270.0,111260.0,2.25489042]
[1747994004055,0.06925085,111270.0,111260.0,2.52421042]
[1747994004640,0.06925085,111270.0,111260.0,1.89490957]
[1747994004913,0.06925085,111270.0,111260.0,2.41392457]
[1747994007672,0.06925085,111270.0,111260.0,2.03162457]
[1747994008343,0.06925085,111270.0,111260.0,2.41938457]
[1747994011652,0.06925085,111270.0,111260.0,2.15006457]
[1747994011890,0.06925085,111270.0,111260.0,2.33244557]
[1747994013596,0.06925085,111270.0,111260.0,1.59778357]
[1747994013827,0.06925085,111270.0,111260.0,2.21250357]
[1747994018123,0.06925085,111270.0,111260.0,1.94322357]
[1747994018351,0.06925085,111270.0,111260.0,2.21250357]
[1747994018824,0.08722393,111270.0,111260.0,0.63926757]
[1747994019043,0.06925085,111270.0,111260.0,1.75700457]
[1747994023883,0.06925085,111270.0,111260.0,1.75704457]
[1747994025331,0.03805085,111270.0,111260.0,1.75704457]
[1747994026340,0.06835085,111270.0,111260.0,1.75704457]
[1747994027101,0.03805085,111270.0,111260.0,1.75704457]
[1747994027536,0.05335085,111270.0,111260.0,1.75704457]
[1747994027708,0.06985085,111270.0,111260.0,1.75704457]
[1747994028730,0.03805085,111270.0,111260.0,1.75704457]
[1747994029464,0.07005085,111270.0,111260.0,1.75704457]
[1747994029703,0.03805085,111270.0,111260.0,1.75704457]
[1747994030337,0.07005085,111270.0,111260.0,1.75704457]
[1747994035990,0.03805085,111270.0,111260.0,1.75704457]
[1747994036413,0.05375085,111270.0,111260.0,1.75704457]
[1747994036630,0.07005085,111270.0,111260.0,1.75704457]
[1747994038593,0.05375085,111270.0,111260.0,1.75704457]
[1747994038794,0.06975085,111270.0,111260.0,1.75704457]
[1747994040253,0.07055085,111270.0,111260.0,1.75704457]
[1747994046562,0.07055085,111270.0,111260.0,1.48772457]
[1747994046791,0.26826753,111270.0,111260.0,0.736]
[1747994047012,0.29699107,111270.0,111260.0,0.61756]
[1747994047280,0.26826753,111270.0,111260.0,0.003]
[1747994047478,0.26826753,111270.0,111260.0,0.95756]
[1747994047681,0.26826753,111270.0,111260.0,0.343]
[1747994047886,0.26826753,111270.0,111260.0,0.61756]
[1747994048100,0.26826753,111270.0,111260.0,0.95756]
[1747994048808,0.26826753,111270.0,111260.0,0.96824749]
[1747994049426,0.35781309,111270.0,111260.0,0.96824749]
[1747994050195,0.35781309,111270.0,111260.0,0.95756]
[1747994051001,0.35781309,111270.0,111260.0,0.95556]
[1747994051208,0.35781309,111270.0,111260.0,0.95456]
[1747994051829,0.35781309,111270.0,111260.0,0.34]
[1747994052241,0.35781309,111270.0,111260.0,0.95456]
[1747994053057,0.35781309,111270.0,111260.0,0.34]
[1747994053263,0.35781309,111270.0,111260.0,0.95456]
[1747994053810,0.35781309,111270.0,111260.0,0.68524]
[1747994053995,0.35781309,111270.0,111260.0,0.95456]
[1747994056120,0.35781309,111270.0,111260.0,0.34]
[1747994056329,0.35781309,111270.0,111260.0,0.9546]
[1747994059015,0.35781309,111270.0,111260.0,0.95464]
[1747994059369,0.35781309,111270.0,111260.0,0.68528]
[1747994059572,0.35781309,111270.0,111260.0,0.34]
[1747994059799,0.35781309,111270.0,111260.0,0.95464]
[1747994062968,0.20474691,111260.0,111250.0,0.38776]
[1747994063178,0.22094691,111260.0,111250.0,1.34244]
[1747994063340,0.31049247,111260.0,111250.0,1.34244]
[1747994063546,0.31049247,111260.0,111250.0,0.72776]
[1747994063746,0.31049247,111260.0,111250.0,1.34228]
[1747994064378,0.31049247,111260.0,111250.0,1.34528]
[1747994065963,0.31049247,111260.0,111250.0,1.07592]
[1747994066163,0.31049247,111260.0,111250.0,1.34528]
[1747994066928,0.31049247,111260.0,111250.0,1.34328]
[1747994067519,0.31049247,111260.0,111250.0,1.34228]
[1747994072748,0.31049247,111260.0,111250.0,0.72776]
[1747994072939,0.31049247,111260.0,111250.0,1.34236]
[1747994073705,0.31049247,111260.0,111250.0,0.6146]
[1747994074886,0.22156404,111250.0,111240.0,0.39856749]
[1747994075109,0.22156404,111250.0,111240.0,1.01316749]
[1747994075332,0.22156404,111250.0,111240.0,1.00248]
[1747994075709,0.22156404,111250.0,111240.0,0.72788]
[1747994075933,0.22156404,111250.0,111240.0,1.34448]
[1747994076461,0.22156404,111250.0,111240.0,0.72988]
[1747994076763,0.22156404,111250.0,111240.0,1.34448]
[1747994077373,0.22156404,111250.0,111240.0,1.34548]
[1747994078539,0.22156404,111250.0,111240.0,1.53426101]
[1747994078730,0.22156404,111250.0,111240.0,0.91966101]
[1747994078926,0.22156404,111250.0,111240.0,1.53426101]
[1747994079686,0.21257528,111250.0,111240.0,1.53426101]
[1747994079848,0.22156404,111250.0,111240.0,1.53426101]
[1747994080059,0.22156404,111250.0,111240.0,0.91966101]
[1747994080261,0.22156404,111250.0,111240.0,1.53426101]
[1747994080700,0.22156404,111250.0,111240.0,0.73088]
[1747994080908,0.22156404,111250.0,111240.0,1.34548]
[1747994081579,0.22156404,111250.0,111240.0,0.73088]
[1747994081798,0.22156404,111250.0,111240.0,1.34548]
[1747994083510,0.22156404,111250.0,111240.0,1.53426101]
[1747994083926,0.22156404,111250.0,111240.0,0.91966101]
[1747994084164,0.22156404,111250.0,111240.0,1.53426101]
[1747994084772,0.22156404,111250.0,111240.0,1.5449485]
[1747994088306,0.23055256,111250.0,111240.0,1.55393782]
[1747994088663,0.23055256,111250.0,111240.0,1.35616749]
[1747994090251,0.23055256,111250.0,111240.0,1.35972998]
[1747994091019,0.23055256,111250.0,111240.0,1.36871955]
[1747994091231,0.23055256,111250.0,111240.0,1.35972998]
[1747994091891,0.23055256,111250.0,111240.0,1.36871955]
[1747994092074,0.23055256,111250.0,111240.0,1.35972998]
[1747994092623,0.23055256,111250.0,111240.0,1.36871955]
[1747994093044,0.23055256,111250.0,111240.0,0.97184998]
[1747994094005,0.23055256,111250.0,111240.0,0.70244998]
[1747994094205,0.23055256,111250.0,111240.0,1.16063099]
[1747994094561,0.23055256,111250.0,111240.0,1.16962048]
[1747994095171,0.23055256,111250.0,111240.0,1.16063099]
[1747994095374,0.23055256,111250.0,111240.0,1.16962048]
[1747994100118,0.23055256,111250.0,111240.0,1.35976998]
[1747994100295,0.23055256,111250.0,111240.0,1.36875955]
[1747994100594,0.23055256,111250.0,111240.0,1.55754048]
[1747994103428,0.23055256,111250.0,111240.0,1.56652989]
[1747994106737,0.23055256,111250.0,111240.0,1.56632989]
[1747994111278,0.23055256,111250.0,111240.0,0.95192989]
[1747994111478,0.23055256,111250.0,111240.0,1.56632989]
[1747994113157,0.23055256,111250.0,111240.0,1.55734048]
[1747994113784,0.22156404,111250.0,111240.0,1.54835099]
[1747994114145,0.22156404,111250.0,111240.0,0.74516998]
[1747994114335,0.21257528,111250.0,111240.0,1.35956998]
[1747994114568,0.30212084,111250.0,111240.0,0.74516998]
[1747994114777,0.30212084,111250.0,111240.0,1.35956998]
[1747994115826,0.30212084,111250.0,111240.0,1.09016998]
[1747994115983,0.30212084,111250.0,111240.0,1.35602273]
[1747994119740,0.30212084,111250.0,111240.0,0.96810273]
[1747994126866,0.19775256,111250.0,111240.0,0.96810273]
[1747994127212,0.18876396,111250.0,111240.0,0.96810273]
[1747994127415,0.21996396,111250.0,111240.0,0.96810273]
[1747994128545,0.21996396,111250.0,111240.0,0.35370273]
[1747994128690,0.21996396,111250.0,111240.0,0.96786273]
[1747994131271,0.21996396,111250.0,111240.0,0.96329942]
[1747994131478,0.21996396,111250.0,111240.0,0.34913942]
[1747994131680,0.21996396,111250.0,111240.0,0.69389942]
[1747994131884,0.21996396,111250.0,111240.0,0.96329942]
[1747994145508,0.21900396,111250.0,111240.0,0.96329942]
[1747994148343,0.21900396,111250.0,111240.0,0.34913942]
[1747994148559,0.21900396,111250.0,111240.0,0.96329942]
[1747994151074,0.21900396,111250.0,111240.0,0.95329942]
[1747994152390,0.21900396,111250.0,111240.0,0.33913942]
[1747994152602,0.21900396,111250.0,111240.0,0.95329942]
[1747994158291,0.21900396,111250.0,111240.0,0.62786273]
[1747994159485,0.21900396,111250.0,111240.0,0.61716]
[1747994162475,0.21900396,111250.0,111240.0,0.6168]
[1747994162677,0.21900396,111250.0,111240.0,0.003]
[1747994162928,0.21900396,111250.0,111240.0,0.6168]
[1747994163737,0.21900396,111250.0,111240.0,0.003]
[1747994164147,0.21900396,111250.0,111240.0,0.6168]
[1747994167842,0.21900396,111250.0,111240.0,0.62750273]
[1747994175893,0.21900396,111250.0,111240.0,0.01370273]
[1747994176067,0.21900396,111250.0,111240.0,0.62750273]
[1747994178301,0.21900396,111250.0,111240.0,0.96750273]
[1747994190513,0.21900396,111250.0,111240.0,0.96714273]
[1747994192836,0.21900396,111250.0,111240.0,0.35370273]
[1747994193020,0.21900396,111250.0,111240.0,0.96714273]
[1747994205275,0.21900396,111250.0,111240.0,0.35370273]
[1747994205530,0.21900396,111250.0,111240.0,0.96714273]
[1747994205786,0.21900396,111250.0,111240.0,0.35370273]
[1747994205985,0.21900396,111250.0,111240.0,0.96714273]
[1747994206191,0.21900396,111250.0,111240.0,0.35370273]
[1747994206339,0.21900396,111250.0,111240.0,0.96714273]
[1747994210652,0.21900396,111250.0,111240.0,0.35370273]
[1747994210855,0.30854952,111250.0,111240.0,0.96714273]
[1747994212484,0.30854952,111250.0,111240.0,0.96514273]
[1747994212943,0.30854952,111250.0,111240.0,0.96414273]
[1747994215119,0.30854952,111250.0,111240.0,0.95344]
[1747994224137,0.30854952,111250.0,111240.0,0.95312]
[1747994227875,0.30854952,111250.0,111240.0,0.34]
[1747994228085,0.30854952,111250.0,111240.0,0.95312]
[1747994242599,0.30854952,111250.0,111240.0,0.34]
[1747994242806,0.30854952,111250.0,111240.0,0.95312]
[1747994243962,0.27734952,111250.0,111240.0,0.95312]
[1747994255553,0.27734952,111250.0,111240.0,0.34]
[1747994255733,0.27734952,111250.0,111240.0,0.95292]
[1747994269003,0.27734952,111250.0,111240.0,0.34]
[1747994269216,0.27734952,111250.0,111240.0,0.95292]
[1747994275657,0.27734952,111250.0,111240.0,0.34]
[1747994275908,0.27734952,111250.0,111240.0,0.95296]
[1747994276598,0.27734952,111250.0,111240.0,0.61296]
[1747994277904,0.19776985,111240.0,111230.0,0.60368572]
[1747994278077,0.19776985,111240.0,111230.0,1.21648572]
[1747994278931,0.20675917,111240.0,111230.0,1.21648572]
[1747994279303,0.20675917,111240.0,111230.0,1.21748572]
[1747994279458,0.20675917,111240.0,111230.0,1.55948572]
[1747994279856,0.21574841,111240.0,111230.0,1.55948572]
[1747994280312,0.02696716,111240.0,111230.0,1.55948572]
[1747994280555,0.03595657,111240.0,111230.0,1.55948572]
[1747994280930,0.02696716,111240.0,111230.0,1.55948572]
[1747994281198,0.21574801,111240.0,111230.0,1.55948572]
[1747994281428,0.03595657,111240.0,111230.0,1.55948572]
[1747994285736,0.06875657,111240.0,111230.0,1.55948572]
[1747994286142,0.06875648,111240.0,111230.0,1.55948572]
[1747994286742,0.07774589,111240.0,111230.0,1.55948572]
[1747994287500,0.07774589,111240.0,111230.0,1.5737357]
[1747994288347,0.06875648,111240.0,111230.0,1.5737357]
[1747994292156,0.05976716,111240.0,111230.0,1.5737357]
[1747994295715,0.05976716,111240.0,111230.0,1.5737357]
[1747994296658,0.06875657,111240.0,111230.0,1.5737357]
[1747994297101,0.05976716,111240.0,111230.0,1.5737357]
[1747994297397,0.05976716,111240.0,111230.0,0.9609357]
[1747994297646,0.06875648,111240.0,111230.0,1.5737357]
[1747994298100,0.06875648,111240.0,111230.0,0.9609357]
[1747994298301,0.06875648,111240.0,111230.0,1.5737357]
[1747994298503,0.05976716,111240.0,111230.0,1.5737357]
[1747994299013,0.06875657,111240.0,111230.0,1.5737357]
[1747994299843,0.06875648,111240.0,111230.0,1.5737357]
[1747994300456,0.05976716,111240.0,111230.0,1.5737357]
[1747994300609,0.06875648,111240.0,111230.0,1.5737357]
[1747994304234,0.07774589,111240.0,111230.0,1.5737357]
[1747994307158,0.05976716,111240.0,111230.0,1.5737357]
[1747994307367,0.06875648,111240.0,111230.0,1.5737357]
[1747994308443,0.07774589,111240.0,111230.0,1.5737357]
[1747994308851,0.06875697,111240.0,111230.0,1.5737357]
[1747994310397,0.05976756,111240.0,111230.0,1.5737357]
[1747994310994,0.06875697,111240.0,111230.0,1.5737357]
[1747994313011,0.05976756,111240.0,111230.0,1.5737357]
[1747994313559,0.06875697,111240.0,111230.0,1.5737357]
[1747994314742,0.05976756,111240.0,111230.0,1.5737357]
[1747994314943,0.06875697,111240.0,111230.0,1.5737357]
[1747994315496,0.06875697,111240.0,111230.0,1.5737757]
[1747994318015,0.24854841,111240.0,111230.0,1.5735357]
[1747994318833,0.06875697,111240.0,111230.0,1.5735357]
[1747994319856,0.24854841,111240.0,111230.0,1.5735357]
[1747994321010,0.2575379,111240.0,111230.0,1.5735357]
[1747994321217,0.23955966,111240.0,111230.0,1.5555564]
[1747994321442,0.23955966,111240.0,111230.0,1.29514645]
[1747994321636,0.23955966,111240.0,111230.0,1.56454645]
[1747994321767,0.24854923,111240.0,111230.0,1.57353642]
[1747994322640,0.24854923,111240.0,111230.0,1.56454645]
[1747994324077,0.24854923,111240.0,111230.0,1.54656627]
[1747994324284,0.23955991,111240.0,111230.0,1.5555564]
[1747994324591,0.2305705,111240.0,111230.0,1.27716627]
[1747994324823,0.2305705,111240.0,111230.0,1.56454653]
[1747994325562,0.2305705,111240.0,111230.0,1.55555648]
[1747994325764,0.2305705,111240.0,111230.0,0.95198661]
[1747994326205,0.2305705,111240.0,111230.0,1.57353666]
[1747994326537,0.2305705,111240.0,111230.0,1.56454661]
[1747994328505,0.2305705,111240.0,111230.0,1.57353666]
[1747994328915,0.2305705,111240.0,111230.0,1.58252663]
[1747994329123,0.2305705,111240.0,111230.0,1.56454661]
[1747994329966,0.2305705,111240.0,111230.0,1.57353658]
[1747994330366,0.2305705,111240.0,111230.0,1.57353666]
[1747994332194,0.2305705,111240.0,111230.0,0.96097666]
[1747994332403,0.2305705,111240.0,111230.0,1.57353666]
[1747994333224,0.2305705,111240.0,111230.0,1.58252663]
[1747994333379,0.23955974,111240.0,111230.0,1.58252663]
[1747994335148,0.23955974,111240.0,111230.0,1.58252623]
[1747994336084,0.23057017,111240.0,111230.0,1.58252623]
[1747994336954,0.23057017,111240.0,111230.0,0.96996623]
[1747994337174,0.23955974,111240.0,111230.0,1.58252623]
[1747994338400,0.23955974,111240.0,111230.0,1.31312623]
[1747994338559,0.23955974,111240.0,111230.0,1.57353634]
[1747994339908,0.23955974,111240.0,111230.0,1.51845016]
[1747994340115,0.23955974,111240.0,111230.0,1.52744005]